bitfinex-derivatives/quotes_BTCF0:USTF0_20250406
["timestamp","ask_amount","ask_price","bid_price","bid_amount"]
[1743942006719,0.0626,82925.0,82924.0,1.6180751]
[1743942007313,0.4170541,82925.0,82924.0,1.6180751]
[1743942007613,0.0626,82925.0,82924.0,1.6180751]
[1743942007819,0.3126,82925.0,82924.0,1.6180751]
[1743942008308,0.3426,82925.0,82924.0,1.6180751]
[1743942008509,0.2926,82925.0,82924.0,1.6180751]
[1743942008714,0.0626,82925.0,82924.0,1.6180751]
[1743942008916,0.3426,82925.0,82924.0,1.6180751]
[1743942009113,0.3326,82925.0,82924.0,1.6180751]
[1743942009315,0.3226,82925.0,82924.0,1.6180751]
[1743942009516,0.31356001,82925.0,82924.0,1.6180751]
[1743942009716,0.3126,82925.0,82924.0,1.6180751]
[1743942010221,0.3326,82925.0,82924.0,1.6180751]
[1743942010412,0.4179741,82925.0,82924.0,1.6180751]
[1743942010718,0.3026,82925.0,82924.0,1.6180751]
[1743942011216,0.0626,82925.0,82924.0,1.6180751]
[1743942016717,0.1626,82925.0,82924.0,1.6180751]
[1743942016921,0.0626,82925.0,82924.0,1.6180751]
[1743942022820,0.4070541,82925.0,82924.0,1.6180751]
[1743942023025,0.2480541,82925.0,82924.0,1.6180751]
[1743942023228,0.1626,82925.0,82924.0,1.6180751]
[1743942023424,0.3226,82925.0,82924.0,1.6180751]
[1743942023726,0.2926,82925.0,82924.0,1.6180751]
[1743942023925,0.3326,82925.0,82924.0,1.6180751]
[1743942024128,0.3226,82925.0,82924.0,1.6180751]
[1743942024323,0.0626,82925.0,82924.0,1.6180751]
[1743942024531,0.3426,82925.0,82924.0,1.6180751]
[1743942024733,0.3026,82925.0,82924.0,1.6180751]
[1743942025328,0.2926,82925.0,82924.0,1.6180751]
[1743942025529,0.3226,82925.0,82924.0,1.6180751]
[1743942026324,0.3326,82925.0,82924.0,1.6180751]
[1743942026625,0.1526,82925.0,82924.0,1.6180751]
[1743942026818,0.2926,82925.0,82924.0,1.6180751]
[1743942027518,0.3426,82925.0,82924.0,1.6180751]
[1743942027721,0.0626,82925.0,82924.0,1.6180751]
[1743942027923,0.3126,82925.0,82924.0,1.6180751]
[1743942028629,0.0626,82925.0,82924.0,1.6180751]
[1743942028835,0.3326,82925.0,82924.0,1.6180751]
[1743942029436,0.3226,82925.0,82924.0,1.6180751]
[1743942029630,0.4070541,82925.0,82924.0,1.6180751]
[1743942029836,0.3970541,82925.0,82924.0,1.6180751]
[1743942030036,0.3870541,82925.0,82924.0,1.6180751]
[1743942030447,0.2570541,82925.0,82924.0,1.6180751]
[1743942030747,0.3970541,82925.0,82924.0,1.6180751]
[1743942030949,0.0626,82925.0,82924.0,1.6180751]
[1743942031139,0.1626,82925.0,82924.0,1.6180751]
[1743942031446,0.0626,82925.0,82924.0,1.6180751]
[1743942031645,0.3426,82925.0,82924.0,1.6180751]
[1743942031851,0.0626,82925.0,82924.0,1.6180751]
[1743942034055,0.0626,82925.0,82924.0,1.6508751]
[1743942042955,0.1526,82925.0,82924.0,1.6508751]
[1743942043257,0.0626,82925.0,82924.0,1.6508751]
[1743942046357,0.0626,82925.0,82924.0,1.6180751]
[1743942046558,0.6270541,82925.0,82924.0,0.00092]
[1743942046759,0.3680541,82925.0,82924.0,0.00092]
[1743942047063,0.4680541,82925.0,82924.0,0.00092]
[1743942047249,0.3680541,82925.0,82924.0,0.00092]
[1743942047451,0.4780541,82925.0,82924.0,0.00092]
[1743942047959,0.4780541,82925.0,82924.0,0.0853751]
[1743942048160,0.5980541,82925.0,82924.0,0.0853751]
[1743942048760,0.5980541,82925.0,82924.0,0.00092]
[1743942050450,0.6580541,82925.0,82924.0,0.00092]
[1743942050650,0.0844623,82917.0,82916.0,0.00921667]
[1743942050846,0.0844633,82916.0,82915.0,0.00018096]
[1743942051050,0.4095633,82916.0,82915.0,0.00933555]
[1743942051267,0.6695633,82916.0,82915.0,0.00933555]
[1743942051449,0.4095633,82916.0,82915.0,0.00933555]
[1743942051851,0.0844653,82914.0,82910.0,0.21552803]
[1743942052068,0.0844755,82904.0,82901.0,8e-05]
[1743942052247,0.9352755,82904.0,82901.0,0.0845583]
[1743942052451,0.9352755,82904.0,82903.0,1.78847045]
[1743942052661,0.9452755,82904.0,82903.0,1.78847045]
[1743942052853,1.0170755,82904.0,82903.0,1.78847045]
[1743942053051,1.0270755,82904.0,82903.0,1.78847045]
[1743942053456,0.7570755,82904.0,82903.0,1.87294695]
[1743942053653,0.8670755,82904.0,82903.0,1.78847045]
[1743942053858,0.9870755,82904.0,82903.0,1.78847045]
[1743942054457,0.7570755,82904.0,82903.0,1.78947045]
[1743942054658,0.8570755,82904.0,82903.0,1.78947045]
[1743942054860,0.7570755,82904.0,82903.0,1.78947045]
[1743942055156,1.0477155,82904.0,82903.0,1.50164]
[1743942055361,1.0077155,82904.0,82903.0,1.50064]
[1743942055849,0.8577155,82904.0,82903.0,1.50064]
[1743942056054,1.0477155,82904.0,82903.0,1.50987743]
[1743942056660,0.7577155,82904.0,82903.0,1.50987743]
[1743942056854,0.9977155,82904.0,82903.0,1.50987743]
[1743942057163,0.8677155,82904.0,82903.0,1.50987743]
[1743942057361,0.8577155,82904.0,82903.0,1.50987743]
[1743942057562,0.87010854,82904.0,82903.0,1.50987743]
[1743942057762,0.77010854,82904.0,82903.0,1.50987743]
[1743942057965,1.03010854,82904.0,82903.0,1.50987743]
[1743942058466,1.00010854,82904.0,82903.0,1.50987743]
[1743942058763,1.04010854,82904.0,82903.0,1.50987743]
[1743942058964,0.86010854,82904.0,82903.0,1.50987743]
[1743942059265,1.04010854,82904.0,82903.0,1.50987743]
[1743942059563,1.02010854,82904.0,82903.0,1.50987743]
[1743942059864,1.01010854,82904.0,82903.0,1.59435393]
[1743942060253,0.77010854,82904.0,82903.0,1.59435393]
[1743942060860,0.88010854,82904.0,82903.0,1.59435393]
[1743942061061,1.01010854,82904.0,82903.0,1.59435393]
[1743942061461,1.02010854,82904.0,82903.0,1.59435393]
[1743942061857,1.01010854,82904.0,82903.0,1.59435393]
[1743942062168,0.87010854,82904.0,82903.0,1.59435393]
[1743942062356,1.00010854,82904.0,82903.0,1.59435393]
[1743942062554,0.87010854,82904.0,82903.0,1.59435393]
[1743942062759,0.77010854,82904.0,82903.0,1.59435393]
[1743942062959,1.00010854,82904.0,82903.0,1.59435393]
[1743942063159,1.05010854,82904.0,82903.0,1.59435393]
[1743942063457,0.86010854,82904.0,82903.0,1.59435393]
[1743942063660,1.02010854,82904.0,82903.0,1.59435393]
[1743942063852,1.01010854,82904.0,82903.0,1.59435393]
[1743942064455,1.02010854,82904.0,82903.0,1.59435393]
[1743942064656,0.99010854,82904.0,82903.0,1.59435393]
[1743942064965,0.77010854,82904.0,82903.0,1.59435393]
[1743942066568,0.77010854,82904.0,82830.0,0.12226208]
[1743942066569,0.0844969,82883.0,82882.0,0.0845779]
[1743942066757,0.6952969,82883.0,82882.0,0.00076]
[1743942066957,0.0845009,82880.0,82877.0,0.0315]
[1743942067266,0.084501,82879.0,82878.0,8e-05]
[1743942067561,0.085301,82879.0,82878.0,1.50072]
[1743942067754,0.085301,82879.0,82878.0,1.53222]
[1743942067955,0.085301,82879.0,82878.0,1.56292]
[1743942068161,0.325301,82879.0,82878.0,1.56292]
[1743942068367,0.085301,82879.0,82878.0,1.56292]
[1743942068866,0.395301,82879.0,82878.0,1.56292]
[1743942069061,0.395301,82879.0,82878.0,1.56692]
[1743942069267,0.375301,82879.0,82878.0,1.56692]
[1743942069452,0.475301,82879.0,82878.0,1.56684]
[1743942069651,0.475301,82879.0,82878.0,1.50464]
[1743942069652,0.406341,82879.0,82878.0,1.50464]
[1743942069864,0.506341,82879.0,82878.0,1.50964]
[1743942070061,0.406341,82879.0,82878.0,1.50964]
[1743942070263,0.406341,82879.0,82878.0,0.00964]
[1743942070264,0.516341,82879.0,82878.0,0.00964]
[1743942070573,0.084504,82876.0,82875.0,0.28847045]
[1743942070754,0.354504,82876.0,82875.0,1.78847045]
[1743942070953,0.614504,82876.0,82875.0,0.20739405]
[1743942071162,0.0845091,82871.0,82869.0,8e-05]
[1743942071358,0.0845122,82868.0,82867.0,0.36006891]
[1743942071559,0.62713405,82868.0,82867.0,0.36006891]
[1743942072058,0.68943405,82868.0,82867.0,0.36006891]
[1743942072254,0.0845193,82861.0,82859.0,8e-05]
[1743942072465,0.0845255,82855.0,82854.0,0.0306]
[1743942072655,0.3345255,82855.0,82854.0,0.0306]
[1743942072862,0.0845275,82853.0,82852.0,0.00018096]
[1743942073057,0.5945275,82853.0,82852.0,0.00018096]
[1743942073362,0.5945275,82853.0,82841.0,0.28733801]
[1743942073363,0.0845387,82842.0,82841.0,0.28733801]
[1743942073566,0.3445387,82842.0,82841.0,0.31933801]
[1743942074267,0.0845448,82836.0,82827.0,0.43116304]
[1743942074463,0.7564248,82836.0,82831.0,0.032]
[1743942074967,0.7564248,82836.0,82835.0,1.50008]
[1743942075155,0.7903648,82836.0,82835.0,1.50076]
[1743942075468,0.7903648,82836.0,82835.0,1.50983513]
[1743942075670,0.7392848,82836.0,82835.0,1.50975513]
[1743942075858,0.7903648,82836.0,82835.0,1.50975513]
[1743942076454,0.7903648,82836.0,82835.0,1.51275513]
[1743942076855,0.7903648,82836.0,82835.0,1.51475513]
[1743942080274,0.00084,82836.0,82835.0,1.66220103]
[1743942080465,0.0845442,82837.0,82836.0,0.1268142]
[1743942080661,0.0845442,82837.0,82836.0,0.2226142]
[1743942081470,0.1745442,82837.0,82836.0,0.2226142]
[1743942081773,0.0845442,82837.0,82836.0,0.2226142]
[1743942081957,0.1845442,82837.0,82836.0,0.2246142]
[1743942082161,0.0845442,82837.0,82836.0,0.2246142]
[1743942082674,0.0422713,82839.0,82838.0,0.0845428]
[1743942082864,0.1922713,82839.0,82838.0,0.0845428]
[1743942083977,0.1922713,82839.0,82838.0,0.0865428]
[1743942084173,0.1922713,82839.0,82838.0,0.0875428]
[1743942084860,0.1922713,82839.0,82835.0,0.00907513]
[1743942084861,0.0845448,82836.0,82835.0,0.00907513]
[1743942085067,0.0845489,82833.0,82829.0,0.3608]
[1743942085374,0.0331,82832.0,82829.0,0.3608]
[1743942085563,0.0331,82832.0,82829.0,0.4453515]
[1743942085763,0.0331,82832.0,82829.0,0.3608]
[1743942085965,0.1184491,82832.0,82830.0,1.5]
[1743942086274,0.1176491,82832.0,82830.0,1.50064]
[1743942086771,0.0845499,82831.0,82830.0,1.50064]
[1743942086975,0.3145499,82831.0,82830.0,1.50990643]
[1743942087159,0.1497499,82831.0,82830.0,0.01390643]
[1743942087361,0.4197499,82831.0,82830.0,0.01326643]
[1743942087873,0.4197499,82831.0,82830.0,1.50926643]
[1743942088074,0.4197499,82831.0,82830.0,1.51690643]
[1743942088373,0.4197499,82831.0,82830.0,0.01690643]
[1743942088574,0.4197499,82831.0,82830.0,0.01626643]
[1743942089271,0.4197499,82831.0,82830.0,0.01690643]
[1743942091870,0.6497499,82831.0,82830.0,0.01690643]
[1743942092067,0.6497499,82831.0,82828.0,1.5]
[1743942092068,0.084552,82829.0,82828.0,1.5]
[1743942092270,0.084552,82829.0,82824.0,8e-05]
[1743942092271,0.52,82829.0,82824.0,8e-05]
[1743942092471,0.52,82829.0,82817.0,0.0321]
[1743942092472,0.3608,82825.0,82817.0,0.0321]
[1743942092783,0.0845602,82821.0,82820.0,8e-05]
[1743942092968,0.08560021,82821.0,82820.0,8e-05]
[1743942093774,0.00104001,82821.0,82820.0,8e-05]
[1743942093972,0.10104001,82821.0,82820.0,0.0846412]
[1743942094167,0.00104001,82821.0,82820.0,0.0906412]
[1743942094366,0.06494001,82821.0,82820.0,0.00608]
[1743942094778,0.14950021,82821.0,82820.0,0.0966412]
[1743942094980,0.14950021,82821.0,82820.0,0.10586763]
[1743942095179,0.38950021,82821.0,82820.0,0.02130643]
[1743942095475,0.38950021,82821.0,82820.0,0.02122643]
[1743942097279,0.75030021,82821.0,82820.0,0.02122643]
[1743942099681,0.76255664,82821.0,82820.0,0.02122643]
[1743942100380,0.82255664,82821.0,82820.0,0.02122643]
[1743942100581,0.76255664,82821.0,82820.0,0.02122643]
[1743942102374,0.0845642,82817.0,82816.0,8e-05]
[1743942102775,0.0855642,82817.0,82816.0,8e-05]
[1743942103081,0.3455642,82817.0,82816.0,8e-05]
[1743942103274,0.1500642,82817.0,82816.0,8e-05]
[1743942103475,0.4000642,82817.0,82816.0,8e-05]
[1743942103778,0.1510642,82817.0,82816.0,0.0886453]
[1743942103982,0.1510642,82817.0,82816.0,0.01008]
[1743942104179,0.4010642,82817.0,82816.0,0.01008]
[1743942104384,0.3910642,82817.0,82816.0,0.01008]
[1743942104580,0.1510642,82817.0,82816.0,0.01008]
[1743942104781,0.4010642,82817.0,82816.0,0.01008]
[1743942104972,0.4110642,82817.0,82816.0,0.01008]
[1743942106083,0.4110642,82817.0,82816.0,0.0190615]
[1743942106283,0.4110642,82817.0,82816.0,0.01008]
[1743942106477,0.4810642,82817.0,82816.0,0.01008]
[1743942106673,0.4110642,82817.0,82816.0,0.01008]
[1743942107277,0.0845663,82815.0,82814.0,8e-05]
[1743942107474,0.0845745,82807.0,82801.0,0.0317]
[1743942107674,0.3145745,82807.0,82806.0,0.05861505]
[1743942107981,0.0845796,82802.0,82801.0,0.0317]
[1743942108280,0.3255796,82802.0,82801.0,0.09032623]
[1743942108484,0.3255796,82802.0,82801.0,0.09024623]
[1743942108783,0.3255796,82802.0,82801.0,0.09920326]
[1743942108994,0.3870796,82802.0,82801.0,0.09920326]
[1743942109284,0.3870796,82802.0,82801.0,0.00895703]
[1743942109584,0.0845806,82801.0,82798.0,8e-05]
[1743942109785,0.3545806,82801.0,82800.0,0.1585293]
[1743942109986,0.4181806,82801.0,82800.0,0.1591693]
[1743942110282,0.4181806,82801.0,82800.0,0.10064]
[1743942111482,0.6481806,82801.0,82800.0,0.10064]
[1743942111680,0.5281806,82801.0,82800.0,0.1]
[1743942111877,0.4181806,82801.0,82800.0,0.1]
[1743942112282,0.0422912,82800.0,82795.0,0.00016]
[1743942112582,0.0422912,82800.0,82761.0,0.42945365]
[1743942112583,0.0845908,82791.0,82789.0,8e-05]
[1743942112788,0.0855908,82791.0,82790.0,1.50064]
[1743942113175,0.3155908,82791.0,82790.0,1.50064]
[1743942113383,0.1480908,82791.0,82790.0,1.50064]
[1743942113777,0.1480908,82791.0,82790.0,1.50982182]
[1743942113988,0.2480908,82791.0,82790.0,1.50982182]
[1743942114388,0.1480908,82791.0,82790.0,1.50982182]
[1743942114585,0.3970908,82791.0,82790.0,1.50982182]
[1743942114788,0.3980908,82791.0,82790.0,1.50064]
[1743942117192,0.3135,82791.0,82790.0,1.5852318]
[1743942117492,0.0331,82791.0,82790.0,1.5852318]
[1743942117681,0.2266908,82791.0,82790.0,1.5852318]
[1743942117883,0.11773081,82791.0,82790.0,1.6499318]
[1743942118078,0.53773081,82791.0,82790.0,1.50064]
[1743942118282,0.29773081,82791.0,82790.0,1.50064]
[1743942118773,0.35646863,82791.0,82790.0,1.50064]
[1743942120183,0.58646863,82791.0,82790.0,1.50064]
[1743942120388,0.35646863,82791.0,82790.0,1.50064]
[1743942121186,0.46646863,82791.0,82790.0,1.50064]
[1743942121491,0.0845979,82784.0,82783.0,0.445399]
[1743942121695,0.0845979,82784.0,82783.0,0.445559]
[1743942121886,0.05873782,82791.0,82789.0,0.0845928]
[1743942122088,0.00018118,82792.0,82790.0,0.1456918]
[1743942122283,0.09593128,82792.0,82791.0,0.0845908]
[1743942122683,0.09593128,82792.0,82791.0,1.6476908]
[1743942123084,0.01134118,82792.0,82791.0,1.6476908]
[1743942123285,0.00134118,82792.0,82791.0,1.6476908]
[1743942123688,0.00018118,82792.0,82791.0,1.6476908]
[1743942124990,0.00018118,82792.0,82791.0,1.6483308]
[1743942126194,0.14434725,82794.0,82793.0,0.0845888]
[1743942126392,0.14434725,82794.0,82793.0,0.0853088]
[1743942126695,0.14554726,82794.0,82793.0,0.0853088]
[1743942126898,0.14554726,82794.0,82793.0,1.5853088]
[1743942127193,0.14434725,82794.0,82793.0,1.5853088]
[1743942127890,0.18042833,82800.0,82793.0,1.5853088]
[1743942127891,0.18042833,82800.0,82799.0,0.0845826]
[1743942128095,0.18158833,82800.0,82799.0,0.0852226]
[1743942128788,0.18158833,82800.0,82799.0,0.1476226]
[1743942129094,0.00116,82800.0,82799.0,0.1476226]
[1743942129297,0.00116,82800.0,82799.0,0.5084226]
[1743942129594,0.08476078,82802.0,82801.0,0.0845806]
[1743942129791,0.08592078,82802.0,82801.0,0.0852206]
[1743942130292,0.00134118,82802.0,82801.0,0.0852206]
[1743942130493,0.00134118,82802.0,82801.0,0.1476206]
[1743942131898,0.10970325,82802.0,82801.0,0.1476206]
[1743942133594,0.14060325,82802.0,82801.0,0.1476206]
[1743942133788,0.66060325,82802.0,82801.0,0.00064]
[1743942134101,0.36747305,82802.0,82801.0,0.0845806]
[1743942134295,0.47747305,82802.0,82801.0,0.0845806]
[1743942134490,0.47747305,82802.0,82801.0,1.5845806]
[1743942134796,0.53747305,82802.0,82801.0,0.0845806]
[1743942134997,0.54747305,82802.0,82801.0,0.0845806]
[1743942135195,0.53747305,82802.0,82801.0,1.5845806]
[1743942135595,0.26747305,82802.0,82801.0,1.5845806]
[1743942135788,0.14060325,82802.0,82801.0,1.5845806]
[1743942136097,0.22518285,82802.0,82801.0,1.5845806]
[1743942136602,0.11682078,82802.0,82801.0,1.5845806]
[1743942137494,0.11682078,82802.0,82801.0,1.61437965]
[1743942137691,0.03224118,82802.0,82801.0,1.61437965]
[1743942137892,0.11682078,82802.0,82801.0,1.61437965]
[1743942139102,0.11682078,82802.0,82801.0,1.58387965]
[1743942140102,0.03224118,82802.0,82801.0,1.58387965]
[1743942140302,0.11682078,82802.0,82801.0,1.58387965]
[1743942140806,0.11682078,82802.0,82801.0,1.5]
[1743942141101,0.37982078,82802.0,82801.0,1.5845806]
[1743942141297,0.39982078,82802.0,82801.0,1.5]
[1743942141602,0.14982078,82802.0,82801.0,1.5845806]
[1743942141807,0.41982078,82802.0,82801.0,1.5845806]
[1743942142502,0.38982078,82802.0,82801.0,1.5]
[1743942142893,0.38982078,82802.0,82801.0,1.5845806]
[1743942143199,0.75062078,82802.0,82801.0,1.5845806]
[1743942144903,0.63304118,82802.0,82801.0,1.5845806]
[1743942145204,0.39304118,82802.0,82801.0,1.5845806]
[1743942145399,0.03224118,82802.0,82801.0,1.5845806]
[1743942145706,0.03108118,82802.0,82801.0,1.6160806]
[1743942147201,0.06258118,82802.0,82801.0,1.6160806]
[1743942148109,0.06258118,82802.0,82801.0,1.5845806]
[1743942148407,0.14716078,82802.0,82801.0,1.5845806]
[1743942148907,0.06258118,82802.0,82801.0,1.5845806]
[1743942149208,0.14716078,82802.0,82801.0,1.5845806]
[1743942149703,0.06258118,82802.0,82801.0,1.5845806]
[1743942149904,0.14716078,82802.0,82801.0,1.5845806]
[1743942150098,0.06258118,82802.0,82801.0,1.5853006]
[1743942150298,0.14716078,82802.0,82801.0,1.5853006]
[1743942150694,0.03108118,82802.0,82801.0,1.5853006]
[1743942150997,0.03108118,82802.0,82801.0,1.6784006]
[1743942151813,0.03108118,82802.0,82801.0,2.0392006]
[1743942154015,0.03108118,82802.0,82801.0,1.6463006]
[1743942154707,0.3608,82817.0,82801.0,1.71172]
[1743942154909,0.0322,82815.0,82814.0,0.1268509]
[1743942155107,0.0322,82815.0,82814.0,0.1900509]
[1743942155610,0.0322,82815.0,82814.0,1.6900509]
[1743942155810,0.1322,82815.0,82814.0,1.6900509]
[1743942156111,0.0322,82815.0,82814.0,1.6589509]
[1743942156307,0.01225202,82821.0,82814.0,1.6589509]
[1743942156308,0.28717419,82844.0,82829.0,0.084552]
[1743942156501,0.28717419,82844.0,82839.0,0.0845418]
[1743942156701,0.00156,82840.0,82839.0,0.4453418]
[1743942156901,0.28717419,82844.0,82843.0,0.0845377]
[1743942157115,0.20686149,82844.0,82843.0,1.9453377]
[1743942157804,0.20686149,82844.0,82843.0,1.9774377]
[1743942158013,0.20686149,82848.0,82847.0,0.0845336]
[1743942158405,0.20686149,82848.0,82847.0,0.09359403]
[1743942159515,0.20886149,82848.0,82847.0,1.59359403]
[1743942160204,0.20886149,82848.0,82847.0,1.59431403]
[1743942160910,3e-08,82855.0,82854.0,0.0845265]
[1743942161116,0.72587622,82861.0,82860.0,0.0845204]
[1743942161419,0.62930792,82861.0,82860.0,0.4971204]
[1743942161714,0.47884572,82861.0,82860.0,1.9971204]
[1743942162112,0.47884572,82861.0,82860.0,2.0603204]
[1743942162318,0.47968572,82861.0,82860.0,2.0609604]
[1743942162510,0.403037,82906.0,82860.0,2.0609604]
[1743942162511,8e-05,82882.0,82864.0,0.0422577]
[1743942162710,1e-08,82882.0,82881.0,0.4452989]
[1743942162909,0.0422358,82908.0,82892.0,0.0844877]
[1743942162910,0.0625,82899.0,82892.0,0.0844877]
[1743942163111,0.00056,82893.0,82892.0,0.4452877]
[1743942164022,0.00056,82893.0,82892.0,0.00890914]
[1743942164217,0.1950467,82893.0,82892.0,0.0844877]
[1743942164413,0.0850467,82893.0,82892.0,0.0844877]
[1743942164915,0.1496467,82893.0,82892.0,0.0844877]
[1743942166123,0.3506467,82893.0,82892.0,0.0844877]
[1743942166311,0.1706467,82893.0,82892.0,0.0844877]
[1743942168020,0.1714867,82893.0,82892.0,0.0851277]
[1743942168215,0.1714867,82893.0,82892.0,0.09396303]
[1743942168719,0.3514867,82893.0,82892.0,0.00947533]
[1743942168910,0.3514867,82893.0,82892.0,0.00883533]
[1743942169109,0.0844949,82885.0,82880.0,0.0422495]
[1743942169318,0.1954149,82885.0,82884.0,0.00082096]
[1743942169622,0.1954149,82885.0,82884.0,0.08531686]
[1743942170023,0.2585149,82885.0,82884.0,0.00082096]
[1743942170420,0.2585149,82885.0,82884.0,0.00182096]
[1743942171320,0.2635149,82885.0,82884.0,0.00182096]
[1743942171825,0.2635149,82885.0,82884.0,0.08631686]
[1743942172221,0.2675149,82885.0,82884.0,0.08531686]
[1743942172622,0.2675149,82885.0,82884.0,0.00082096]
[1743942173019,0.2675149,82885.0,82884.0,0.00972149]
[1743942175027,0.2675149,82885.0,82884.0,1.50972149]
[1743942175227,0.2665949,82885.0,82884.0,1.50972149]
[1743942176628,0.2615949,82885.0,82884.0,1.50972149]
[1743942176930,0.2665949,82885.0,82884.0,1.50972149]
[1743942177526,0.2615949,82885.0,82884.0,1.50972149]
[1743942177721,0.2665949,82885.0,82884.0,1.50972149]
[1743942177926,0.2665949,82885.0,82884.0,0.00972149]
[1743942178125,0.0422507,82879.0,82863.0,0.3608]
[1743942178318,0.0845112,82869.0,82862.0,0.3608]
[1743942178524,0.3245112,82869.0,82868.0,1.5]
[1743942179232,0.3862112,82869.0,82868.0,1.5]
[1743942179633,0.3872112,82869.0,82868.0,1.5]
[1743942180135,0.3890512,82869.0,82868.0,1.50084]
[1743942180838,0.3890512,82869.0,82868.0,1.50971925]
[1743942181638,0.3900112,82869.0,82868.0,1.50971925]
[1743942181837,0.3055,82869.0,82868.0,1.59423145]
[1743942182027,0.4875589,82876.0,82875.0,0.0845051]
[1743942182228,0.0845061,82874.0,82873.0,0.042253]
[1743942182431,0.2151861,82874.0,82873.0,0.0008]
[1743942182926,0.2785861,82874.0,82873.0,0.0008]
[1743942183340,0.3108861,82874.0,82873.0,0.0853071]
[1743942183644,0.3108861,82874.0,82873.0,0.0008]
[1743942183937,0.3158861,82874.0,82873.0,0.0008]
[1743942185029,0.4258861,82874.0,82873.0,0.0008]
[1743942185436,0.0845091,82871.0,82851.0,0.00060349]
[1743942185739,0.0845489,82832.0,82831.0,0.0329]
[1743942185932,0.05196,82851.0,82849.0,0.0845316]
[1743942186128,0.0422629,82855.0,82854.0,0.0845265]
[1743942186329,0.1267858,82857.0,82856.0,0.0845244]
[1743942186531,0.1275858,82857.0,82856.0,0.0851644]
[1743942186732,0.1275858,82857.0,82856.0,0.00064]
[1743942187039,0.1267858,82857.0,82856.0,0.1152644]
[1743942188740,0.1267858,82857.0,82856.0,0.1162644]
[1743942188938,0.2367858,82857.0,82856.0,0.1162644]
[1743942189130,0.2407858,82857.0,82856.0,0.1152644]
[1743942189332,0.1337858,82857.0,82856.0,0.1152644]
[1743942189636,0.0915234,82857.0,82856.0,0.1152644]
[1743942191630,0.007,82857.0,82856.0,0.1152644]
[1743942191834,0.00024,82864.0,82863.0,0.0845173]
[1743942192133,0.00104,82864.0,82863.0,0.4453173]
[1743942192335,0.00024,82864.0,82863.0,1.9459573]
[1743942192542,0.00024,82864.0,82863.0,2.0120573]
[1743942193137,0.00124,82864.0,82863.0,2.0120573]
[1743942193333,0.00224,82864.0,82863.0,2.0120573]
[1743942194940,0.00124,82864.0,82863.0,2.0120573]
[1743942195340,8e-05,82869.0,82863.0,2.0120573]
[1743942195341,0.12826714,82870.0,82866.0,0.0422566]
[1743942195534,0.12826714,82870.0,82869.0,0.0845112]
[1743942195745,0.12906714,82870.0,82869.0,0.0851512]
[1743942195944,0.12906714,82870.0,82869.0,0.3498712]
[1743942195945,0.0008,82870.0,82869.0,0.3498712]
[1743942196144,0.0004,82876.0,82875.0,0.0845051]
[1743942196345,0.0004,82876.0,82875.0,0.4459451]
[1743942196940,0.00018109,82884.0,82883.0,0.0844969]
[1743942197145,0.12826714,82890.0,82889.0,0.0844908]
[1743942197441,0.12914714,82890.0,82889.0,1.9459308]
[1743942197644,0.12826714,82890.0,82889.0,1.9459308]
[1743942199053,0.12826714,82890.0,82889.0,2.00429226]
[1743942199645,0.12826714,82890.0,82889.0,1.9459308]
[1743942199847,0.12826714,82890.0,82889.0,2.00428022]
[1743942200034,8e-05,82896.0,82895.0,0.0844847]
[1743942200234,8e-05,82896.0,82895.0,0.4459247]
[1743942200944,8e-05,82896.0,82895.0,0.5076247]
[1743942201143,0.00208,82896.0,82895.0,0.5076247]
[1743942202232,0.00308,82896.0,82895.0,0.5076247]
[1743942202443,0.003,82896.0,82895.0,0.5076247]
[1743942202643,0.003,82896.0,82895.0,0.4763247]
[1743942204239,0.003,82896.0,82895.0,0.48549766]
[1743942206248,0.0657,82896.0,82895.0,0.48549766]
[1743942206652,0.003,82896.0,82895.0,0.48549766]
[1743942207241,0.003,82896.0,82895.0,1.98549766]
[1743942208848,0.1,82900.0,82895.0,1.98549766]
[1743942208849,0.05009138,82900.0,82899.0,0.0844806]
[1743942209052,8e-08,82900.0,82899.0,0.5960006]
[1743942209252,8e-08,82912.0,82911.0,0.0844684]
[1743942209551,8e-08,82912.0,82911.0,1.9977884]
[1743942209750,8e-08,82912.0,82911.0,2.1484684]
[1743942210254,8e-08,82912.0,82911.0,2.2110684]
[1743942212053,8e-05,82919.0,82918.0,0.0844612]
[1743942212244,8e-05,82919.0,82918.0,0.4452612]
[1743942212446,8e-05,82919.0,82918.0,0.4459812]
[1743942212950,8e-05,82919.0,82918.0,0.5093812]
[1743942213254,8e-05,82919.0,82918.0,0.5113812]
[1743942214759,8e-05,82919.0,82918.0,0.5133812]
[1743942216357,8e-05,82919.0,82918.0,0.60248154]
[1743942216551,8e-05,82919.0,82918.0,0.4499812]
[1743942216855,0.00088,82919.0,82918.0,0.4499812]
[1743942217048,0.06108,82919.0,82918.0,0.4499812]
[1743942217650,0.1455402,82919.0,82918.0,0.4499812]
[1743942217846,0.1464202,82919.0,82918.0,0.4499812]
[1743942220061,0.3364202,82919.0,82918.0,0.00472]
[1743942220261,0.3364202,82919.0,82918.0,0.004]
[1743942220559,0.3404202,82919.0,82918.0,0.002]
[1743942220959,0.3404202,82919.0,82918.0,0.0864612]
[1743942221362,0.3434202,82919.0,82918.0,0.0844612]
[1743942221856,0.3404202,82919.0,82918.0,0.0844612]
[1743942222060,0.3434202,82919.0,82918.0,0.0844612]
[1743942222661,0.3404202,82919.0,82918.0,0.0844612]
[1743942222965,0.3434202,82919.0,82918.0,0.0844612]
[1743942223462,0.3394202,82919.0,82918.0,0.0844612]
[1743942223662,0.3434202,82919.0,82918.0,0.0844612]
[1743942224364,0.3394202,82919.0,82918.0,0.0844612]
[1743942224553,0.3434202,82919.0,82918.0,0.0844612]
[1743942225755,0.0844633,82917.0,82916.0,0.0844625]
[1743942225956,0.2753433,82917.0,82916.0,0.0851825]
[1743942226155,0.3363633,82917.0,82916.0,0.0851825]
[1743942227865,0.3393633,82917.0,82916.0,0.0851825]
[1743942228767,0.3413633,82917.0,82916.0,0.0851825]
[1743942229366,0.3383633,82917.0,82916.0,0.0851825]
[1743942229662,0.3413633,82917.0,82916.0,0.0851825]
[1743942230964,0.3413633,82917.0,82916.0,0.00072]
[1743942231262,0.3421633,82917.0,82916.0,0.00072]
[1743942231468,0.6021633,82917.0,82916.0,0.00072]
[1743942231653,0.0844684,82911.0,82910.0,0.00018098]
[1743942231857,0.0844786,82901.0,82900.0,0.29803761]
[1743942232057,0.0844786,82901.0,82900.0,1.79867761]
[1743942232766,0.1484786,82901.0,82900.0,1.79867761]
[1743942233459,0.1484786,82901.0,82900.0,1.79967761]
[1743942234167,0.1484786,82901.0,82900.0,1.5861188]
[1743942234771,0.1484786,82901.0,82900.0,1.5881188]
[1743942235563,0.1484786,82901.0,82900.0,1.5871188]
[1743942235769,0.16058322,82901.0,82900.0,1.5871188]